{"text_format":"1","workbook":"xlsx","n_sheets":5,"sheets":["FORSIDE","INFORMASJON","Løpsoppsett Lørdag","Løpsoppsett Søndag","Foto av banen"],"not_rendered":{"charts":0,"images":3,"macros":0,"external_links":0,"defined_names":5,"comments":1,"pivot_tables":0},"unopened":[],"bounds":{"document_bytes":16777216,"sheet_cells":100000,"rows_first":2000,"rows_last":500,"rows_between":2000,"halvings":0,"cell_chars":16384,"cell_head_chars":4096},"cells_cut":0,"cells_raw":0,"read":"whole","date_system":"1900"}

{"sheet":"FORSIDE","index":0,"n_rows":33,"n_cols":2,"rows_kept":33,"cut":false,"hidden":false,"merged":[]}
[]
[]
[]
[]
[]
[]
[null,"inviterer til"]
[]
[null,"NORGESMESTERSKAPENE"]
[null,"ROING 2015"]
[null,"med Stokkavannsregattaen"]
[]
[]
[]
[]
[]
[]
[]
[]
[]
[]
[]
[]
[]
[]
[]
[]
[]
[]
[]
[]
[null,"Stokkavann Rostadion"]
[null,"Lørdag 19. og søndag 20. september 2015"]

{"sheet":"INFORMASJON","index":1,"n_rows":64,"n_cols":3,"rows_kept":64,"cut":false,"hidden":false,"merged":[[44,1,44,4],[46,1,46,4],[47,1,47,4],[30,1,30,4],[0,0,0,4],[2,0,2,4],[3,0,3,4],[5,0,5,4],[37,1,37,4]]}
["Stavanger Roklub inviterer til"]
[]
["NORGESMESTERSKAP i ROING"]
["med Stokkavannsregatta"]
[]
["Stokkavann Rostadion lørdag 19. og søndag 20. september 2015"]
[]
[]
["Regattaarrangør:","Stavanger Roklub"]
[]
["Påmeldingsfrist:","Senest innen onsdag 09. september"]
[]
["Påmeldingsadresse:","Sportsadmin."]
[]
["Kontaktperson:","Regattaleder","Peter Sabel"]
[null,"Mobil",48045467]
[null,"E-post: ","formann@stavanger-roklub.no"]
["Regattakontor","Arne Tvedt Gundersen","post@stavanger-roklub.no"]
[]
["Startkontingent:","1X","kr. 250"]
[null,"2X, 2-","kr. 300"]
[null,"4-, 4X","kr. 350"]
[null,"8+","kr. 450"]
[]
["Innbetaling startkontingent:","Startkontingent, eventuelle efteranmeldinger og middag faktureres via Medlemsnett (e-post) iht til påmelding."]
[]
["Tidsintervall finaler:","NM 10 minutter, ikke NM-løp 8 minutter"]
[]
["Tidligste start forsøk:","Lørdag kl. 08.00","Søndag kl. 07.00"]
[]
["Forsøksordning:","Forsøksording for NM iht. regattareglementets §37 og vedlegg 4.8"]
[]
["Kombinasjonslag:","Tillates iht. Regattareglementet, dog ikke for NM-løp"]
[]
["Etteranmeldinger","Efteranmeldelser i ikke NM godtas mot dobbel startkontingent dersom dette ikke fører til at det blir nytt forsøksløp. "]
[null,"Efteranmelding til NM kan i særskilte tilfeller godtas av Dommerutvalget (§ 37 regattareglementet). "]
[]
["Flytting:","Flytting fra en båtklasse til en annen pga liten deltakelse i den opprinnelige påmeldte klassen, vil kunne"]
[null,"gjøres uten at dette blir betraktet som efteranmelding. Forbehold hvis dette gir forsøksløp."]
[]
["Informasjonsmøte:","Fredag 18.september kl 20.00 i klubbrommet"]
[]
["Premieutdeling:","Etter regattas slutt på lørdag og like etter løpene på søndag."]
[]
["Særlige opplysninger:","Det vil ikke bli arrangert forsøksløp for Junior B 1X og Junior C. Lagene fordeles direkte i heat med "]
[null,"premiering i hvert heat."]
[null,"Lag som er alene påmeldt i sitt løp vil få anledning til påmelding i et annet løp."]
[null,"Arrangøren vil kunne arrangere løp for båtklasser som ikke er nevnt i innbydelsen hvis det anmodes om"]
[null,"dette innen påmeldingsfristen. Disse vil evnt. bli puttet inn der opprinnelig oppsatte løp faller ut."]
[]
["B-finaler","Det vil bli B-finaler i enkelte løp ."]
[]
["Matservering:","Mat og opplegg omtrent som tidligere år. Men i år ikke etter regattaen er avlsuttet, men flere varmretter, pasta, dessert og drikke fordelt over ettermiddagen. "]
[null,"Meget populært i tidligere år. Bestill allerede nå!"]
[]
[null,"Pris kr 150,- pr person. Forhåndsbestilling med antall personer sendes samtidig med påmeldingen (Mindre"]
[null,"justeringer i antall kan gjøres senere). Matbilletter utdeles etter at betalingen er registrert."]
[]
["Kiosksalg begge dager:","Vi vil ha åpen kiosk ved klubbhuset begge løpsdager. Salg av is, brus, kaffe, sandwich, vafler, med mer."]
[]
["Overnatting:","Det henvises til tidligere e-post til deltagende klubbene. Vi har fått gode tilbud fra en rekker overnattingsteder."]
[null,"Både hoteller, campingplass og skole. Ta kontakt med Peter Sabel for med informasjon."]
[]
[null,"Stavanger Roklub:","Dessverre ingen plass i år p.g.a. NM."]

{"sheet":"Løpsoppsett Lørdag","index":2,"n_rows":25,"n_cols":17,"rows_kept":25,"cut":false,"hidden":false,"merged":[[0,0,0,14]]}
["LØPSOPPSETT LØRDAG",null,null,null,null,null,null,null,null,null,null,null,null,null,null,"00:08:00"]
["LØPSDAG","LØP NR","Plassering","Forsøk","Veiing","Oppsamling","Finale","Bane","START NR","Kjønn","Klasse","Båttype","Distanse","Roklubb","Roere","Foreløpig start finale","Etteranmeldt"]
["Lørdag",101,null,1,null,null,null,null,null,"H","JB","1X",1000]
["Lørdag",{"$f":"B3+1","v":102},null,{"$f":"#REF!+1","v":{"$error":"#REF!"}},null,null,null,null,null,"D","JC","2X",1000]
["Lørdag",{"$f":"B4+1","v":103},null,{"$f":"D3+1","v":2},null,null,null,null,null,"D","JB","1X",1000]
["Lørdag",104,null,{"$f":"D4+1","v":{"$error":"#REF!"}},null,null,null,null,null,"H","JC","2X",1000]
["Lørdag",105,null,{"$f":"#REF!+1","v":{"$error":"#REF!"}},null,null,null,null,null,"H","JB","2X",1000]
["Lørdag",106,null,{"$f":"D9+1","v":{"$error":"#REF!"}},null,null,null,null,null,"MIX ","JC","4X",1000]
["Lørdag",107,null,{"$f":"#REF!+1","v":{"$error":"#REF!"}},null,null,null,null,null,"D","JB","2X",1000]
["Lørdag",108,null,{"$f":"#REF!+1","v":{"$error":"#REF!"}},null,null,null,null,null,"H","JB","8+",1000]
["Lørdag",109,null,null,null,null,null,null,null,"AS D"," AS D"," 1X",1000]
["Lørdag",110,null,null,null,null,null,null,null,"D"," DS"," 1X",2000]
["Lørdag",111,null,null,null,null,null,null,null,"H"," HJA"," 1X",2000]
["Lørdag",112,null,null,null,null,null,null,null,"D"," DJA"," 1X",2000]
["Lørdag",113,null,null,null,null,null,null,null,"H","HS","4X",2000]
["Lørdag",114,null,null,null,null,null,null,null,"D"," DS","4-",2000]
["Lørdag",115,null,null,null,null,null,null,null,"H"," HJA"," 8+",2000]
["Lørdag",116,null,null,null,null,null,null,null,"D"," DJA"," 4X",2000]
["Lørdag",117,null,null,null,null,null,null,null,"H"," HS","2-",2000]
["Lørdag",118,null,null,null,null,null,null,null,"D"," DS"," Lv 1X",2000]
["Lørdag",119,null,null,null,null,null,null,null,"H"," HS"," Lv 2X",2000]
["Lørdag",120,null,null,null,null,null,null,null,"H"," HJA","4-",2000]
["Lørdag",121,null,null,null,null,null,null,null,"H"," HS"," 1X",2000]
["Lørdag",122,null,null,null,null,null,null,null,null," LTA Mix"," 2X",1000]
["Lørdag",123,null,null,null,null,null,null,null,"D"," DS"," 8+",2000]

{"sheet":"Løpsoppsett Søndag","index":3,"n_rows":26,"n_cols":13,"rows_kept":26,"cut":false,"hidden":false,"merged":[[0,0,0,14]]}
["LØPSOPPSETT SØNDAG"]
["LØPSDAG","LØP NR","Plassering","Forsøk","Veiing","Oppsamling","Finale","Bane","START NR","Kjønn","Klasse","Båttype","Distanse"]
["Søndag",201,null,1,null,null,null,null,null,"H","JB","1X",1500]
["Søndag",{"$f":"B3+1","v":202},null,{"$f":"#REF!+1","v":{"$error":"#REF!"}},null,null,null,null,null,"D","JC","2X",1000]
["Søndag",{"$f":"B4+1","v":203},null,{"$f":"D3+1","v":2},null,null,null,null,null,"D","JB","1X",1500]
["Søndag",204,null,{"$f":"D4+1","v":{"$error":"#REF!"}},null,null,null,null,null,"H","JC","2X",1000]
["Søndag",205,null,{"$f":"#REF!+1","v":{"$error":"#REF!"}},null,null,null,null,null,"D","JB","4X",1500]
["Søndag",206,null,{"$f":"#REF!+1","v":{"$error":"#REF!"}},null,null,null,null,null,"MIX ","JC","4X",1000]
["Søndag",207,null,{"$f":"D8+1","v":{"$error":"#REF!"}},null,null,null,null,null,"H","JB","4-",1500]
["Søndag",208,null,{"$f":"#REF!+1","v":{"$error":"#REF!"}},null,null,null,null,null,"D","JB","8+",1500]
["Søndag",209,null,null,null,null,null,null,null,"H"," AS H"," 1X",1000]
["Søndag",210,null,null,null,null,null,null,null,"D"," DS Lv"," 2X",2000]
["Søndag",211,null,null,null,null,null,null,null,"H"," HJA","2-",2000]
["Søndag",212,null,null,null,null,null,null,null,"H"," HS Lv"," 1X",2000]
["Søndag",213,null,null,null,null,null,null,null,"H"," HS","4-",2000]
["Søndag",214,null,null,null,null,null,null,null,"D"," DS","2-",2000]
["Søndag",215,null,null,null,null,null,null,null,"H"," HJA"," 4X",2000]
["Søndag",216,null,null,null,null,null,null,null,"D"," DJA"," 8+",2000]
["Søndag",217,null,null,null,null,null,null,null,"H"," HS"," 2X",2000]
["Søndag",218,null,null,null,null,null,null,null,"D"," DS"," 2X",2000]
["Søndag",219,null,null,null,null,null,null,null,"H"," HS Lv","4-",2000]
["Søndag",220,null,null,null,null,null,null,null,"H"," HJA"," 2X",2000]
["Søndag",221,null,null,null,null,null,null,null,"D"," DJA"," 2X",2000]
["Søndag",222,null,null,null,null,null,null,null,"D"," DS"," 4X",2000]
["Søndag",223,null,null,null,null,null,null,null,"MIX "," TA Mix"," 2X",1000]
["Søndag",224,null,null,null,null,null,null,null,"H"," HS"," 8+",2000]

{"sheet":"Foto av banen","index":4,"n_rows":45,"n_cols":1,"rows_kept":45,"cut":false,"hidden":false,"merged":[]}
[]
[]
[]
[]
[]
[]
[]
[]
[]
[]
[]
[]
[]
[]
[]
[]
[]
[]
[]
[]
[]
[]
[]
[]
[]
[]
[]
[]
[]
[]
[]
[]
[]
[]
[]
[]
[]
[]
[]
[]
[]
[]
["      Kjør inn ved Esso stasjonen ved Sunde, følg skiltet til Krossberg. Bilene parkeres på parkeringsplass ved veien. \"Stavanger Roklub - Regatta\" skilt i veikanten."]
["      OBS: Her i Stavanger må regattabanen krysses for å ro fra bryggen til start. Bruk markert kryssningssted og vær forsiktig når du krysser regattabanen. "]
["      DE SOM KRYSSER BANEN HAR VIKEPLIKT FOR LØP SOM GÅR PÅ BANEN!"]